[Event "Titled Tuesday Blitz May 10 Early 2022"]
[White "Prieto Aranguren, Alain"]
[Black "Derraugh, Geordie"]
[WhiteFideId "2268906"]
[BlackFideId "2603950"]
[WhiteElo "2235"]
[BlackElo "2116"]
[Result "0-1"]
[Round "10"]
[TimeControl "180+1"]
[Date "2022.05.11"]
[WhiteClock "0:00:04"]
[BlackClock "0:00:06"]

1. d4 {[%clk 0:02:57]}  Nf6 {[%clk 0:02:59]} 2. Bg5 {[%clk 0:02:57]}  Ne4 {[%clk 0:02:58]} 3. Be3 {[%clk 0:02:56]}  d5 {[%clk 0:02:58]} 4. f3 {[%clk 0:02:56]}  Nd6 {[%clk 0:02:57]} 5. Bf2 {[%clk 0:02:57]}  g6 {[%clk 0:02:56]} 6. e3 {[%clk 0:02:57]}  Bg7 {[%clk 0:02:56]} 7. h4 {[%clk 0:02:57]}  h5 {[%clk 0:02:54]} 8. Nh3 {[%clk 0:02:57]}  c5 {[%clk 0:02:53]} 9. Ng5 {[%clk 0:02:56]}  cxd4 {[%clk 0:02:50]} 10. exd4 {[%clk 0:02:56]}  Nf5 {[%clk 0:02:50]} 11. c3 {[%clk 0:02:55]}  Nc6 {[%clk 0:02:49]} 12. Bd3 {[%clk 0:02:48]}  Qa5 {[%clk 0:02:42]} 13. Qb3 {[%clk 0:02:45]}  Nfxd4 {[%clk 0:02:37]} 14. Qd1 {[%clk 0:02:37]}  Ne6 {[%clk 0:02:31]} 15. Nd2 {[%clk 0:02:36]}  Nxg5 {[%clk 0:02:26]} 16. hxg5 {[%clk 0:02:36]}  d4 {[%clk 0:02:18]} 17. Nb3 {[%clk 0:02:35]}  Qxg5 {[%clk 0:02:17]} 18. cxd4 {[%clk 0:02:30]}  Qxg2 {[%clk 0:02:13]} 19. Rg1 {[%clk 0:02:30]}  Qh3 {[%clk 0:02:12]} 20. Qe2 {[%clk 0:02:23]}  Qe6 {[%clk 0:02:08]} 21. d5 {[%clk 0:02:05]}  Qxe2+ {[%clk 0:02:00]} 22. Kxe2 {[%clk 0:02:02]}  Nb4 {[%clk 0:01:49]} 23. Be4 {[%clk 0:01:57]}  Bxb2 {[%clk 0:01:42]} 24. Rab1 {[%clk 0:01:53]}  Ba3 {[%clk 0:01:28]} 25. Nd4 {[%clk 0:01:48]}  f5 {[%clk 0:01:20]} 26. Nb5 {[%clk 0:01:31]}  fxe4 {[%clk 0:01:20]} 27. Nxa3 {[%clk 0:01:24]}  exf3+ {[%clk 0:01:19]} 28. Kxf3 {[%clk 0:01:21]}  Bg4+ {[%clk 0:01:17]} 29. Kg3 {[%clk 0:01:09]}  Nd3 {[%clk 0:00:55]} 30. Bd4 {[%clk 0:01:03]}  O-O {[%clk 0:00:53]} 31. Rxb7 {[%clk 0:01:00]}  Rf3+ {[%clk 0:00:47]} 32. Kh4 {[%clk 0:00:59]}  Raf8 {[%clk 0:00:21]} 33. Rxe7 {[%clk 0:00:53]}  R8f5 {[%clk 0:00:21]} 34. Rg7+ {[%clk 0:00:35]}  Kf8 {[%clk 0:00:21]} 35. Rxg4 {[%clk 0:00:26]}  hxg4 {[%clk 0:00:19]} 36. Rxg6 {[%clk 0:00:20]}  Rxd5 {[%clk 0:00:14]} 37. Kxg4 {[%clk 0:00:12]}  Rf4+ {[%clk 0:00:13]} 38. Kg3 {[%clk 0:00:11]}  Rfxd4 {[%clk 0:00:14]} 39. Nc2 {[%clk 0:00:10]}  Ra4 {[%clk 0:00:12]} 40. a3 {[%clk 0:00:10]}  Ne5 {[%clk 0:00:10]} 41. Re6 {[%clk 0:00:10]}  Rd3+ {[%clk 0:00:09]} 42. Kf2 {[%clk 0:00:10]}  Ng4+ {[%clk 0:00:08]} 43. Ke2 {[%clk 0:00:09]}  Rc3 {[%clk 0:00:07]} 44. Kd2 {[%clk 0:00:09]}  Rac4 {[%clk 0:00:06]} 45. Ne1 {[%clk 0:00:09]}  Rxa3 {[%clk 0:00:06]} 46. Rg6 {[%clk 0:00:09]}  Ne5 {[%clk 0:00:06]} 47. Rg5 {[%clk 0:00:09]}  Ra2+ {[%clk 0:00:04]} 48. Kd1 {[%clk 0:00:09]}  Ra1+ {[%clk 0:00:04]} 49. Kd2 {[%clk 0:00:09]}  Rxe1 {[%clk 0:00:04]} 50. Rf5+ {[%clk 0:00:08]}  Ke7 {[%clk 0:00:04]} 51. Kxe1 {[%clk 0:00:09]}  Re4+ {[%clk 0:00:04]} 52. Kd2 {[%clk 0:00:09]}  Nc6 {[%clk 0:00:03]} 53. Rh5 {[%clk 0:00:09]}  Kd6 {[%clk 0:00:04]} 54. Rh7 {[%clk 0:00:09]}  a5 {[%clk 0:00:03]} 55. Kd3 {[%clk 0:00:09]}  Re5 {[%clk 0:00:03]} 56. Kc4 {[%clk 0:00:09]}  Rc5+ {[%clk 0:00:04]} 57. Kb3 {[%clk 0:00:09]}  Re5 {[%clk 0:00:04]} 58. Ka4 {[%clk 0:00:09]}  Kc5 {[%clk 0:00:05]} 59. Rh6 {[%clk 0:00:09]}  Kb6 {[%clk 0:00:05]} 60. Rg6 {[%clk 0:00:09]}  Re4+ {[%clk 0:00:05]} 61. Ka3 {[%clk 0:00:09]}  Rc4 {[%clk 0:00:05]} 62. Rg5 {[%clk 0:00:09]}  Rc5 {[%clk 0:00:05]} 63. Rg6 {[%clk 0:00:09]}  Kb5 {[%clk 0:00:06]} 64. Rg8 {[%clk 0:00:09]}  Rc3+ {[%clk 0:00:06]} 65. Ka2 {[%clk 0:00:09]}  Rf3 {[%clk 0:00:06]} 66. Rg7 {[%clk 0:00:09]}  Nb4+ {[%clk 0:00:06]} 67. Kb2 {[%clk 0:00:08]}  Ka4 {[%clk 0:00:07]} 68. Rg5 {[%clk 0:00:08]}  Rb3+ {[%clk 0:00:07]} 69. Ka1 {[%clk 0:00:08]}  Re3 {[%clk 0:00:07]} 70. Kb2 {[%clk 0:00:07]}  Re2+ {[%clk 0:00:07]} 71. Kb1 {[%clk 0:00:07]}  Kb3 {[%clk 0:00:06]} 72. Rg3+ {[%clk 0:00:07]}  Kc4 {[%clk 0:00:05]} 73. Rg4+ {[%clk 0:00:08]}  Kc3 {[%clk 0:00:05]} 74. Rg3+ {[%clk 0:00:05]}  Nd3 {[%clk 0:00:06]} 75. Rg8 {[%clk 0:00:04]}  Re1+ {[%clk 0:00:05]} 76. Ka2 {[%clk 0:00:04]}  Nb4+ {[%clk 0:00:06]} 0-1


[Site "https://www.chess.com"]

[Event "Titled Tuesday Blitz May 10 Early 2022"]
[White "Shuvalov, Evgenij"]
[Black "Kozak, Antoni"]
[WhiteFideId "4187237"]
[BlackFideId "21832030"]
[WhiteElo "2053"]
[BlackElo "2322"]
[Result "0-1"]
[Round "10"]
[TimeControl "180+1"]
[Date "2022.05.11"]
[WhiteClock "0:00:24"]
[BlackClock "0:00:14"]

1. Nf3 {[%clk 0:02:55]}  d5 {[%clk 0:02:57]} 2. c4 {[%clk 0:02:54]}  e6 {[%clk 0:02:54]} 3. g3 {[%clk 0:02:52]}  Nf6 {[%clk 0:02:52]} 4. Bg2 {[%clk 0:02:51]}  Be7 {[%clk 0:02:52]} 5. O-O {[%clk 0:02:51]}  O-O {[%clk 0:02:53]} 6. b3 {[%clk 0:02:52]}  d4 {[%clk 0:02:51]} 7. e3 {[%clk 0:02:51]}  c5 {[%clk 0:02:51]} 8. exd4 {[%clk 0:02:51]}  cxd4 {[%clk 0:02:52]} 9. Ne5 {[%clk 0:02:51]}  Nbd7 {[%clk 0:02:39]} 10. Nxd7 {[%clk 0:02:49]}  Qxd7 {[%clk 0:02:39]} 11. Re1 {[%clk 0:02:46]}  Rb8 {[%clk 0:02:36]} 12. d3 {[%clk 0:02:42]}  b5 {[%clk 0:02:30]} 13. Bf4 {[%clk 0:02:32]}  Rb6 {[%clk 0:02:27]} 14. Nd2 {[%clk 0:02:29]}  Bb7 {[%clk 0:02:24]} 15. Bxb7 {[%clk 0:02:26]}  Rxb7 {[%clk 0:02:22]} 16. Rc1 {[%clk 0:02:20]}  Bb4 {[%clk 0:02:19]} 17. Be5 {[%clk 0:02:06]}  Ne8 {[%clk 0:02:05]} 18. Re4 {[%clk 0:02:06]}  Bc3 {[%clk 0:01:53]} 19. Nb1 {[%clk 0:01:58]}  b4 {[%clk 0:01:41]} 20. Nd2 {[%clk 0:01:34]}  f6 {[%clk 0:01:29]} 21. Bf4 {[%clk 0:01:28]}  e5 {[%clk 0:01:28]} 22. Bh6 {[%clk 0:01:26]}  gxh6 {[%clk 0:01:24]} 23. Nf3 {[%clk 0:01:26]}  Nd6 {[%clk 0:01:20]} 24. Rh4 {[%clk 0:01:25]}  Kh8 {[%clk 0:01:04]} 25. Rxh6 {[%clk 0:01:21]}  Qg7 {[%clk 0:01:04]} 26. Rh4 {[%clk 0:01:16]}  Nf5 {[%clk 0:01:02]} 27. Re4 {[%clk 0:01:12]}  a5 {[%clk 0:00:57]} 28. Qf1 {[%clk 0:01:12]}  a4 {[%clk 0:00:56]} 29. Qh3 {[%clk 0:01:11]}  Nd6 {[%clk 0:00:47]} 30. Rg4 {[%clk 0:01:09]}  Qd7 {[%clk 0:00:42]} 31. Qh4 {[%clk 0:01:06]}  Nf5 {[%clk 0:00:37]} 32. Qh5 {[%clk 0:01:03]}  Ng7 {[%clk 0:00:34]} 33. Qh4 {[%clk 0:00:59]}  Qf7 {[%clk 0:00:27]} 34. Qh3 {[%clk 0:00:43]}  Qh5 {[%clk 0:00:20]} 35. Nh4 {[%clk 0:00:37]}  f5 {[%clk 0:00:14]} 36. Rxg7 {[%clk 0:00:34]}  Rxg7 {[%clk 0:00:12]} 37. Qg2 {[%clk 0:00:32]}  Qxh4 {[%clk 0:00:12]} 38. gxh4 {[%clk 0:00:32]}  Rxg2+ {[%clk 0:00:12]} 39. Kxg2 {[%clk 0:00:33]}  axb3 {[%clk 0:00:12]} 40. axb3 {[%clk 0:00:33]}  Ra8 {[%clk 0:00:12]} 41. Rb1 {[%clk 0:00:32]}  e4 {[%clk 0:00:11]} 42. dxe4 {[%clk 0:00:30]}  fxe4 {[%clk 0:00:12]} 43. Kg3 {[%clk 0:00:30]}  d3 {[%clk 0:00:13]} 44. Kf4 {[%clk 0:00:30]}  Re8 {[%clk 0:00:12]} 45. Ke3 {[%clk 0:00:30]}  d2 {[%clk 0:00:12]} 46. c5 {[%clk 0:00:29]}  Kg7 {[%clk 0:00:12]} 47. c6 {[%clk 0:00:28]}  Kf6 {[%clk 0:00:12]} 48. c7 {[%clk 0:00:28]}  Rc8 {[%clk 0:00:13]} 49. Kxe4 {[%clk 0:00:28]}  Rxc7 {[%clk 0:00:13]} 50. f4 {[%clk 0:00:26]}  Re7+ {[%clk 0:00:13]} 51. Kf3 {[%clk 0:00:24]}  Re1 {[%clk 0:00:14]} 0-1


[Site "https://www.chess.com"]

[Event "Titled Tuesday Blitz May 10 Early 2022"]
[White "Shyaamnikhil P"]
[Black "Stankovic, Ivan G"]
[WhiteFideId "5024218"]
[BlackFideId "902837"]
[WhiteElo "2329"]
[BlackElo "2195"]
[Result "1-0"]
[Round "10"]
[TimeControl "180+1"]
[Date "2022.05.10"]
[WhiteClock "0:00:54"]
[BlackClock "0:00:02"]

1. e4 {[%clk 0:03:00]}  c5 {[%clk 0:02:59]} 2. Nf3 {[%clk 0:02:59]}  Nc6 {[%clk 0:02:59]} 3. Bb5 {[%clk 0:02:58]}  g6 {[%clk 0:02:58]} 4. O-O {[%clk 0:02:57]}  Bg7 {[%clk 0:02:58]} 5. Re1 {[%clk 0:02:56]}  Nf6 {[%clk 0:02:49]} 6. e5 {[%clk 0:02:54]}  Nd5 {[%clk 0:02:49]} 7. c3 {[%clk 0:02:54]}  O-O {[%clk 0:02:49]} 8. d4 {[%clk 0:02:53]}  cxd4 {[%clk 0:02:49]} 9. cxd4 {[%clk 0:02:54]}  d6 {[%clk 0:02:49]} 10. Bxc6 {[%clk 0:02:52]}  bxc6 {[%clk 0:02:49]} 11. Nc3 {[%clk 0:02:51]}  Bg4 {[%clk 0:02:44]} 12. Nxd5 {[%clk 0:02:48]}  cxd5 {[%clk 0:02:43]} 13. h3 {[%clk 0:02:47]}  Bxf3 {[%clk 0:02:43]} 14. Qxf3 {[%clk 0:02:48]}  dxe5 {[%clk 0:02:43]} 15. dxe5 {[%clk 0:02:48]}  e6 {[%clk 0:02:42]} 16. b3 {[%clk 0:02:39]}  Qa5 {[%clk 0:02:37]} 17. Bb2 {[%clk 0:02:34]}  Rfc8 {[%clk 0:02:35]} 18. Qd3 {[%clk 0:02:33]}  Rc6 {[%clk 0:02:21]} 19. Re2 {[%clk 0:02:12]}  Rac8 {[%clk 0:02:18]} 20. g3 {[%clk 0:02:06]}  Bf8 {[%clk 0:01:59]} 21. Kg2 {[%clk 0:02:03]}  Ba3 {[%clk 0:01:58]} 22. Bd4 {[%clk 0:02:02]}  Rc1 {[%clk 0:01:52]} 23. Rxc1 {[%clk 0:02:01]}  Rxc1 {[%clk 0:01:48]} 24. Rc2 {[%clk 0:02:01]}  Rxc2 {[%clk 0:01:19]} 25. Qxc2 {[%clk 0:02:00]}  Bf8 {[%clk 0:01:19]} 26. a4 {[%clk 0:01:55]}  Kg7 {[%clk 0:01:14]} 27. g4 {[%clk 0:01:47]}  Qe1 {[%clk 0:00:59]} 28. Bxa7 {[%clk 0:01:38]}  Qxe5 {[%clk 0:00:59]} 29. Qd2 {[%clk 0:01:38]}  Qe4+ {[%clk 0:00:53]} 30. f3 {[%clk 0:01:36]}  Qb1 {[%clk 0:00:52]} 31. Bd4+ {[%clk 0:01:32]}  Kg8 {[%clk 0:00:53]} 32. Qb2 {[%clk 0:01:31]}  Qe1 {[%clk 0:00:42]} 33. Bc3 {[%clk 0:01:29]}  Qe3 {[%clk 0:00:40]} 34. b4 {[%clk 0:01:27]}  Bd6 {[%clk 0:00:36]} 35. Qd2 {[%clk 0:01:08]}  Qa7 {[%clk 0:00:13]} 36. a5 {[%clk 0:01:08]}  Bb8 {[%clk 0:00:13]} 37. Qd4 {[%clk 0:01:06]}  Qxd4 {[%clk 0:00:12]} 38. Bxd4 {[%clk 0:01:07]}  e5 {[%clk 0:00:12]} 39. Bc5 {[%clk 0:01:06]}  f5 {[%clk 0:00:12]} 40. a6 {[%clk 0:01:04]}  d4 {[%clk 0:00:12]} 41. b5 {[%clk 0:01:03]}  d3 {[%clk 0:00:11]} 42. Kf2 {[%clk 0:01:03]}  e4 {[%clk 0:00:11]} 43. fxe4 {[%clk 0:01:03]}  fxe4 {[%clk 0:00:12]} 44. b6 {[%clk 0:01:02]}  Bg3+ {[%clk 0:00:04]} 45. Kf1 {[%clk 0:01:00]}  Bf4 {[%clk 0:00:01]} 46. a7 {[%clk 0:01:00]}  e3 {[%clk 0:00:02]} 47. a8=Q+ {[%clk 0:00:57]}  Kg7 {[%clk 0:00:02]} 48. Bd4+ {[%clk 0:00:55]}  Kh6 {[%clk 0:00:01]} 49. Qf8+ {[%clk 0:00:54]}  Kg5 {[%clk 0:00:02]} 50. Bf6# {[%clk 0:00:54]} 1-0


[Site "https://www.chess.com"]

[Event "Titled Tuesday Blitz May 10 Early 2022"]
[White "Simonovic, Miroslav"]
[Black "Needleman, Alejandro"]
[WhiteFideId "919152"]
[BlackFideId "100730"]
[WhiteElo "2043"]
[BlackElo "2347"]
[Result "0-1"]
[Round "10"]
[TimeControl "180+1"]
[Date "2022.05.11"]
[WhiteClock "0:00:01"]
[BlackClock "0:00:59"]

1. d4 {[%clk 0:03:00]}  c5 {[%clk 0:02:59]} 2. c3 {[%clk 0:03:00]}  Nf6 {[%clk 0:02:59]} 3. Bg5 {[%clk 0:02:59]}  Ne4 {[%clk 0:02:57]} 4. h4 {[%clk 0:02:59]}  Qb6 {[%clk 0:02:54]} 5. Qc2 {[%clk 0:02:44]}  cxd4 {[%clk 0:02:49]} 6. Qxe4 {[%clk 0:02:25]}  Qxb2 {[%clk 0:02:45]} 7. cxd4 {[%clk 0:02:25]}  Qxa1 {[%clk 0:02:44]} 8. Qc2 {[%clk 0:02:25]}  Nc6 {[%clk 0:02:43]} 9. e3 {[%clk 0:02:25]}  e5 {[%clk 0:02:38]} 10. d5 {[%clk 0:02:14]}  Nb4 {[%clk 0:02:31]} 11. Qb3 {[%clk 0:02:14]}  Qxa2 {[%clk 0:02:26]} 12. Qxa2 {[%clk 0:02:13]}  Nxa2 {[%clk 0:02:26]} 13. Bc4 {[%clk 0:02:02]}  Nb4 {[%clk 0:02:22]} 14. e4 {[%clk 0:01:52]}  Bc5 {[%clk 0:02:17]} 15. Nf3 {[%clk 0:01:50]}  d6 {[%clk 0:02:17]} 16. Ke2 {[%clk 0:01:32]}  Bd7 {[%clk 0:02:14]} 17. Na3 {[%clk 0:01:31]}  h6 {[%clk 0:02:08]} 18. Bd2 {[%clk 0:01:30]}  O-O {[%clk 0:02:07]} 19. Rb1 {[%clk 0:01:15]}  a5 {[%clk 0:02:06]} 20. Bb5 {[%clk 0:00:57]}  Bg4 {[%clk 0:01:55]} 21. Nc4 {[%clk 0:00:53]}  f5 {[%clk 0:01:54]} 22. Bd7 {[%clk 0:00:40]}  Bxf3+ {[%clk 0:01:53]} 23. gxf3 {[%clk 0:00:39]}  fxe4 {[%clk 0:01:54]} 24. Be6+ {[%clk 0:00:39]}  Kh8 {[%clk 0:01:52]} 25. Be3 {[%clk 0:00:30]}  exf3+ {[%clk 0:01:48]} 26. Kf1 {[%clk 0:00:20]}  e4 {[%clk 0:01:46]} 27. Bxc5 {[%clk 0:00:16]}  dxc5 {[%clk 0:01:47]} 28. Ne5 {[%clk 0:00:16]}  Rf6 {[%clk 0:01:39]} 29. Re1 {[%clk 0:00:09]}  a4 {[%clk 0:01:31]} 30. Nd7 {[%clk 0:00:05]}  Rf4 {[%clk 0:01:27]} 31. Nxc5 {[%clk 0:00:03]}  a3 {[%clk 0:01:25]} 32. d6 {[%clk 0:00:01]}  a2 {[%clk 0:01:24]} 33. Bxa2 {[%clk 0:00:01]}  Nxa2 {[%clk 0:01:22]} 34. d7 {[%clk 0:00:02]}  Nc3 {[%clk 0:01:17]} 35. Rc1 {[%clk 0:00:01]}  Rxh4 {[%clk 0:00:59]} 0-1


[Site "https://www.chess.com"]

[Event "Titled Tuesday Blitz May 10 Early 2022"]
[White "Sjugirov, Sanan"]
[Black "Fedoseev, Vladimir"]
[WhiteFideId "4189302"]
[BlackFideId "24130737"]
[WhiteElo "2602"]
[BlackElo "2726"]
[Result "0-1"]
[Round "10"]
[TimeControl "180+1"]
[Date "2022.05.10"]
[WhiteClock "0:00:09"]
[BlackClock "0:00:09"]

1. e4 {[%clk 0:03:00]}  c5 {[%clk 0:02:28]} 2. Nf3 {[%clk 0:03:00]}  Nc6 {[%clk 0:02:25]} 3. d4 {[%clk 0:02:56]}  cxd4 {[%clk 0:02:25]} 4. Nxd4 {[%clk 0:02:57]}  e5 {[%clk 0:02:25]} 5. Nb3 {[%clk 0:02:51]}  Nf6 {[%clk 0:02:22]} 6. Bg5 {[%clk 0:02:50]}  Bb4+ {[%clk 0:02:21]} 7. c3 {[%clk 0:02:47]}  Be7 {[%clk 0:02:20]} 8. Bxf6 {[%clk 0:02:46]}  Bxf6 {[%clk 0:02:21]} 9. Bc4 {[%clk 0:02:42]}  O-O {[%clk 0:02:20]} 10. O-O {[%clk 0:02:42]}  d6 {[%clk 0:02:20]} 11. Na3 {[%clk 0:02:37]}  a6 {[%clk 0:02:12]} 12. Nc2 {[%clk 0:02:36]}  Bg5 {[%clk 0:02:11]} 13. a3 {[%clk 0:02:23]}  Qc7 {[%clk 0:02:07]} 14. Qe2 {[%clk 0:02:07]}  Ne7 {[%clk 0:02:04]} 15. Nb4 {[%clk 0:02:01]}  b5 {[%clk 0:02:01]} 16. Bd3 {[%clk 0:01:23]}  Be6 {[%clk 0:01:59]} 17. Nd2 {[%clk 0:01:23]}  a5 {[%clk 0:01:42]} 18. Nc2 {[%clk 0:01:22]}  Rfb8 {[%clk 0:01:42]} 19. Nf3 {[%clk 0:01:20]}  Bh6 {[%clk 0:01:38]} 20. Bxb5 {[%clk 0:01:15]}  Ng6 {[%clk 0:01:04]} 21. a4 {[%clk 0:01:00]}  Nf4 {[%clk 0:01:03]} 22. Qd1 {[%clk 0:01:00]}  Bc4 {[%clk 0:00:53]} 23. Bxc4 {[%clk 0:00:56]}  Qxc4 {[%clk 0:00:54]} 24. Na3 {[%clk 0:00:55]}  Qxe4 {[%clk 0:00:52]} 25. Nb5 {[%clk 0:00:55]}  Rd8 {[%clk 0:00:46]} 26. Re1 {[%clk 0:00:40]}  Qf5 {[%clk 0:00:46]} 27. Nh4 {[%clk 0:00:10]}  Qf6 {[%clk 0:00:36]} 28. Qg4 {[%clk 0:00:08]}  g6 {[%clk 0:00:29]} 29. Rad1 {[%clk 0:00:07]}  Bf8 {[%clk 0:00:28]} 30. g3 {[%clk 0:00:06]}  Ne6 {[%clk 0:00:26]} 31. Ng2 {[%clk 0:00:06]}  Nc5 {[%clk 0:00:25]} 32. Ne3 {[%clk 0:00:06]}  h5 {[%clk 0:00:25]} 33. Qe2 {[%clk 0:00:05]}  Nxa4 {[%clk 0:00:23]} 34. Nd5 {[%clk 0:00:05]}  Qg7 {[%clk 0:00:23]} 35. Ra1 {[%clk 0:00:04]}  Nc5 {[%clk 0:00:23]} 36. Nbc7 {[%clk 0:00:04]}  Rab8 {[%clk 0:00:20]} 37. Rxa5 {[%clk 0:00:04]}  e4 {[%clk 0:00:21]} 38. b4 {[%clk 0:00:03]}  Nd3 {[%clk 0:00:21]} 39. Rea1 {[%clk 0:00:02]}  Qe5 {[%clk 0:00:20]} 40. Qxe4 {[%clk 0:00:02]}  Qxe4 {[%clk 0:00:16]} 41. Nf6+ {[%clk 0:00:02]}  Kg7 {[%clk 0:00:16]} 42. Nxe4 {[%clk 0:00:03]}  Rbc8 {[%clk 0:00:15]} 43. Nd5 {[%clk 0:00:03]}  Re8 {[%clk 0:00:16]} 44. Ng5 {[%clk 0:00:03]}  Re5 {[%clk 0:00:14]} 45. f4 {[%clk 0:00:03]}  Rf5 {[%clk 0:00:14]} 46. Ne4 {[%clk 0:00:02]}  Nb2 {[%clk 0:00:14]} 47. Nd2 {[%clk 0:00:01]}  Nd3 {[%clk 0:00:13]} 48. Ne4 {[%clk 0:00:01]}  Nb2 {[%clk 0:00:11]} 49. Nd2 {[%clk 0:00:01]}  Re8 {[%clk 0:00:12]} 50. c4 {[%clk 0:00:02]}  Re2 {[%clk 0:00:11]} 51. Rd1 {[%clk 0:00:02]}  Nxd1 {[%clk 0:00:10]} 52. Nf3 {[%clk 0:00:02]}  Ne3 {[%clk 0:00:10]} 53. Nd4 {[%clk 0:00:01]}  Rg2+ {[%clk 0:00:10]} 54. Kh1 {[%clk 0:00:01]}  Rd2 {[%clk 0:00:10]} 55. Nxf5+ {[%clk 0:00:02]}  Nxf5 {[%clk 0:00:08]} 56. b5 {[%clk 0:00:02]}  Rb2 {[%clk 0:00:08]} 57. b6 {[%clk 0:00:02]}  Nd4 {[%clk 0:00:09]} 58. Kg1 {[%clk 0:00:01]}  Nf3+ {[%clk 0:00:09]} 59. Kf1 {[%clk 0:00:02]}  Nxh2+ {[%clk 0:00:09]} 60. Ke1 {[%clk 0:00:02]}  Nf3+ {[%clk 0:00:10]} 61. Kd1 {[%clk 0:00:03]}  Nd4 {[%clk 0:00:10]} 62. Kc1 {[%clk 0:00:03]}  Rb3 {[%clk 0:00:10]} 63. Kd2 {[%clk 0:00:04]}  Ne6 {[%clk 0:00:10]} 64. Rb5 {[%clk 0:00:03]}  Rxb5 {[%clk 0:00:09]} 65. cxb5 {[%clk 0:00:04]}  Nc5 {[%clk 0:00:10]} 66. Nb4 {[%clk 0:00:04]}  f6 {[%clk 0:00:09]} 67. Nc6 {[%clk 0:00:04]}  Nb7 {[%clk 0:00:09]} 68. Kd3 {[%clk 0:00:05]}  Kf7 {[%clk 0:00:10]} 69. Ke4 {[%clk 0:00:04]}  Ke6 {[%clk 0:00:10]} 70. Nd4+ {[%clk 0:00:04]}  Kd7 {[%clk 0:00:10]} 71. Kd5 {[%clk 0:00:05]}  Be7 {[%clk 0:00:10]} 72. f5 {[%clk 0:00:06]}  g5 {[%clk 0:00:09]} 73. Ne6 {[%clk 0:00:06]}  h4 {[%clk 0:00:09]} 74. gxh4 {[%clk 0:00:05]}  gxh4 {[%clk 0:00:10]} 75. Nf4 {[%clk 0:00:06]}  Bd8 {[%clk 0:00:10]} 76. Ke4 {[%clk 0:00:06]}  Bxb6 {[%clk 0:00:10]} 77. Nd5 {[%clk 0:00:07]}  Bd8 {[%clk 0:00:10]} 78. Kf4 {[%clk 0:00:08]}  Nc5 {[%clk 0:00:08]} 79. Kg4 {[%clk 0:00:08]}  Na4 {[%clk 0:00:07]} 80. Kxh4 {[%clk 0:00:08]}  Nb6 {[%clk 0:00:08]} 81. Nf4 {[%clk 0:00:08]}  d5 {[%clk 0:00:08]} 82. Kg4 {[%clk 0:00:09]}  Kd6 {[%clk 0:00:08]} 83. Kf3 {[%clk 0:00:08]}  Be7 {[%clk 0:00:09]} 84. Ke3 {[%clk 0:00:08]}  Kc5 {[%clk 0:00:08]} 85. Kd3 {[%clk 0:00:07]}  Bd6 {[%clk 0:00:07]} 86. Ne6+ {[%clk 0:00:06]}  Kxb5 {[%clk 0:00:08]} 87. Kd4 {[%clk 0:00:07]}  Be5+ {[%clk 0:00:07]} 88. Kd3 {[%clk 0:00:07]}  Kc6 {[%clk 0:00:07]} 89. Nf8 {[%clk 0:00:08]}  Kd6 {[%clk 0:00:08]} 90. Ng6 {[%clk 0:00:08]}  Nd7 {[%clk 0:00:08]} 91. Nh4 {[%clk 0:00:09]}  Nc5+ {[%clk 0:00:09]} 0-1


[Site "https://www.chess.com"]

[Event "Titled Tuesday Blitz May 10 Early 2022"]
[White "Soucek, Petr"]
[Black "Navalgund, Niranjan"]
[WhiteFideId "23715170"]
[BlackFideId "5030854"]
[WhiteElo "1979"]
[BlackElo "2290"]
[Result "1-0"]
[Round "10"]
[TimeControl "180+1"]
[Date "2022.05.11"]
[WhiteClock "0:00:07"]
[BlackClock "0:00:08"]

1. e4 {[%clk 0:03:00]}  b6 {[%clk 0:02:59]} 2. g3 {[%clk 0:02:55]}  Bb7 {[%clk 0:02:04]} 3. Bg2 {[%clk 0:02:52]}  Nf6 {[%clk 0:02:03]} 4. Nc3 {[%clk 0:02:46]}  e5 {[%clk 0:02:03]} 5. Nge2 {[%clk 0:02:35]}  h5 {[%clk 0:02:03]} 6. d4 {[%clk 0:02:27]}  exd4 {[%clk 0:02:02]} 7. Nxd4 {[%clk 0:02:28]}  h4 {[%clk 0:02:02]} 8. O-O {[%clk 0:02:22]}  h3 {[%clk 0:00:45]} 9. Bh1 {[%clk 0:02:21]}  Bc5 {[%clk 0:00:44]} 10. e5 {[%clk 0:02:01]}  Bxh1 {[%clk 0:00:44]} 11. Kxh1 {[%clk 0:02:02]}  Nh5 {[%clk 0:00:40]} 12. Nb3 {[%clk 0:01:38]}  Qe7 {[%clk 0:00:11]} 13. Nd5 {[%clk 0:01:26]}  Qd8 {[%clk 0:00:09]} 14. Nxc5 {[%clk 0:01:24]}  bxc5 {[%clk 0:00:09]} 15. Be3 {[%clk 0:01:21]}  Nc6 {[%clk 0:00:09]} 16. Qf3 {[%clk 0:00:41]}  d6 {[%clk 0:00:08]} 17. exd6 {[%clk 0:00:34]}  Qxd6 {[%clk 0:00:09]} 18. Rad1 {[%clk 0:00:32]}  O-O-O {[%clk 0:00:08]} 19. Nb6+ {[%clk 0:00:20]}  axb6 {[%clk 0:00:09]} 20. Rxd6 {[%clk 0:00:20]}  Rxd6 {[%clk 0:00:10]} 21. c3 {[%clk 0:00:18]}  Nf6 {[%clk 0:00:10]} 22. Bf4 {[%clk 0:00:18]}  Re6 {[%clk 0:00:10]} 23. a4 {[%clk 0:00:15]}  Rhe8 {[%clk 0:00:10]} 24. Kg1 {[%clk 0:00:11]}  Kb7 {[%clk 0:00:07]} 25. b4 {[%clk 0:00:11]}  Ne4 {[%clk 0:00:07]} 26. b5 {[%clk 0:00:11]}  Na5 {[%clk 0:00:07]} 27. Qg4 {[%clk 0:00:08]}  Nd2 {[%clk 0:00:05]} 28. Bxd2 {[%clk 0:00:08]}  Nb3 {[%clk 0:00:05]} 29. Be3 {[%clk 0:00:08]}  c4 {[%clk 0:00:05]} 30. Qxh3 {[%clk 0:00:07]}  Na5 {[%clk 0:00:04]} 31. Qg2+ {[%clk 0:00:08]}  Ka7 {[%clk 0:00:05]} 32. Qf3 {[%clk 0:00:07]}  Rf6 {[%clk 0:00:05]} 33. Qg4 {[%clk 0:00:05]}  Rg6 {[%clk 0:00:05]} 34. Qf5 {[%clk 0:00:05]}  Ree6 {[%clk 0:00:05]} 35. Qxf7 {[%clk 0:00:05]}  Kb7 {[%clk 0:00:06]} 36. Bf4 {[%clk 0:00:04]}  Rc6 {[%clk 0:00:04]} 37. bxc6+ {[%clk 0:00:04]}  Rxc6 {[%clk 0:00:05]} 38. Qxg7 {[%clk 0:00:04]}  Nb3 {[%clk 0:00:05]} 39. Rd1 {[%clk 0:00:04]}  Nc5 {[%clk 0:00:06]} 40. Rd5 {[%clk 0:00:04]}  Ne6 {[%clk 0:00:06]} 41. Qe7 {[%clk 0:00:04]}  Nxf4 {[%clk 0:00:05]} 42. gxf4 {[%clk 0:00:05]}  Rg6+ {[%clk 0:00:05]} 43. Kf1 {[%clk 0:00:04]}  Kc6 {[%clk 0:00:06]} 44. Rg5 {[%clk 0:00:04]}  Rd6 {[%clk 0:00:06]} 45. f5 {[%clk 0:00:04]}  Rd2 {[%clk 0:00:06]} 46. f6 {[%clk 0:00:04]}  Rc2 {[%clk 0:00:06]} 47. Qe4+ {[%clk 0:00:04]}  Kd7 {[%clk 0:00:06]} 48. Qxc2 {[%clk 0:00:05]}  b5 {[%clk 0:00:06]} 49. Qe4 {[%clk 0:00:06]}  bxa4 {[%clk 0:00:07]} 50. Qxc4 {[%clk 0:00:06]}  a3 {[%clk 0:00:07]} 51. Rd5+ {[%clk 0:00:06]}  Ke6 {[%clk 0:00:07]} 52. Qe4+ {[%clk 0:00:06]}  Kf7 {[%clk 0:00:08]} 53. Qe7+ {[%clk 0:00:06]}  Kg6 {[%clk 0:00:08]} 54. Qg7# {[%clk 0:00:07]} 1-0


[Site "https://www.chess.com"]